[Event "Early-Titled-Tuesday-Blitz-October-17-2023"]
[Site "Chess.com"]
[Date "2023.10.17"]
[Round "4"]
[White "BJthechessgod"]
[Black "JiiHart"]
[Result "1-0"]
[WhiteElo "2386"]
[BlackElo "2197"]
[TimeControl "180+1"]
[EndTime "8:41:49 PDT"]
[Termination "BJthechessgod won by checkmate"]

1. e4 {[%clk 0:03:00.9]} 1... e5 {[%clk 0:02:59.1]} 2. Nf3 {[%clk 0:02:56.4]}
2... Nf6 {[%clk 0:02:58.9]} 3. Nxe5 {[%clk 0:02:56.3]} 3... d6 {[%clk
0:02:58.9]} 4. Nf3 {[%clk 0:02:56.3]} 4... Nxe4 {[%clk 0:02:59.1]} 5. Nc3 {[%clk
0:02:56.9]} 5... d5 {[%clk 0:02:56.4]} 6. Bd3 {[%clk 0:02:44.3]} 6... f5 {[%clk
0:02:53.4]} 7. O-O {[%clk 0:02:40.3]} 7... Be7 {[%clk 0:02:49.4]} 8. Ne5 {[%clk
0:02:26.6]} 8... O-O {[%clk 0:02:43.7]} 9. Nxd5 {[%clk 0:02:23.2]} 9... Bd6
{[%clk 0:02:25.4]} 10. Nf3 {[%clk 0:02:01.5]} 10... Bxh2+ {[%clk 0:02:21.4]} 11.
Kxh2 {[%clk 0:01:49.3]} 11... Qxd5 {[%clk 0:02:21.1]} 12. Qe2 {[%clk 0:01:36.9]}
12... Kh8 {[%clk 0:01:59.9]} 13. Bc4 {[%clk 0:01:32]} 13... Qd6+ {[%clk
0:01:58.2]} 14. Kg1 {[%clk 0:01:31]} 14... Nc6 {[%clk 0:01:55.2]} 15. d3 {[%clk
0:01:30.4]} 15... Nf6 {[%clk 0:01:45.2]} 16. Re1 {[%clk 0:01:23.9]} 16... Bd7
{[%clk 0:01:39.3]} 17. Ng5 {[%clk 0:01:16.4]} 17... Rae8 {[%clk 0:01:05.3]} 18.
Qd1 {[%clk 0:01:08]} 18... Rxe1+ {[%clk 0:00:54]} 19. Qxe1 {[%clk 0:01:08.9]}
19... Ng4 {[%clk 0:00:54.3]} 20. g3 {[%clk 0:00:34.3]} 20... Nge5 {[%clk
0:00:52.1]} 21. Bf4 {[%clk 0:00:22.1]} 21... h6 {[%clk 0:00:52.4]} 22. Nf7+
{[%clk 0:00:13.7]} 22... Rxf7 {[%clk 0:00:42.8]} 23. Bxf7 {[%clk 0:00:14.6]}
23... Nf3+ {[%clk 0:00:31.8]} 24. Kf1 {[%clk 0:00:07.8]} 24... Qf6 {[%clk
0:00:20]} 25. Qe3 {[%clk 0:00:03.4]} 25... Nh2+ {[%clk 0:00:17.9]} 26. Kg2
{[%clk 0:00:03.2]} 26... Ng4 {[%clk 0:00:18.2]} 27. Qf3 {[%clk 0:00:01.5]} 27...
Qxf7 {[%clk 0:00:17.9]} 28. Re1 {[%clk 0:00:02.3]} 28... g5 {[%clk 0:00:15.6]}
29. Bxc7 {[%clk 0:00:02.8]} 29... Nf6 {[%clk 0:00:13]} 30. c3 {[%clk 0:00:02.7]}
30... Be6 {[%clk 0:00:12.2]} 31. Be5 {[%clk 0:00:03.1]} 31... Bd5 {[%clk
0:00:11.8]} 32. Bxf6+ {[%clk 0:00:03.5]} 32... Kh7 {[%clk 0:00:10.4]} 33. Be5
{[%clk 0:00:02]} 33... Bxf3+ {[%clk 0:00:10]} 34. Kxf3 {[%clk 0:00:02.9]} 34...
Qxa2 {[%clk 0:00:10]} 35. d4 {[%clk 0:00:03.2]} 35... Qxb2 {[%clk 0:00:09.7]}
36. d5 {[%clk 0:00:03]} 36... Nd8 {[%clk 0:00:08.6]} 37. Bd4 {[%clk 0:00:02.2]}
37... Nf7 {[%clk 0:00:07.9]} 38. Re7 {[%clk 0:00:02.7]} 38... Kg6 {[%clk
0:00:08.1]} 39. Re6+ {[%clk 0:00:02]} 39... Kh5 {[%clk 0:00:05.9]} 40. Rf6
{[%clk 0:00:02.7]} 40... Nd8 {[%clk 0:00:04.1]} 41. Rxf5 {[%clk 0:00:02.8]}
41... Qc2 {[%clk 0:00:03.4]} 42. g4+ {[%clk 0:00:03.2]} 42... Kh4 {[%clk
0:00:02.6]} 43. Rf6 {[%clk 0:00:03.6]} 43... Qd3+ {[%clk 0:00:02.9]} 44. Kg2
{[%clk 0:00:03.5]} 44... Qe4+ {[%clk 0:00:03.1]} 45. f3 {[%clk 0:00:03.8]} 45...
Qh7 {[%clk 0:00:02]} 46. Bf2# {[%clk 0:00:04.4]} 1-0

[Event "Early-Titled-Tuesday-Blitz-October-17-2023"]
[Site "Chess.com"]
[Date "2023.10.17"]
[Round "4"]
[White "sokidze"]
[Black "TimGrutter03"]
[Result "1-0"]
[WhiteElo "2784"]
[BlackElo "2552"]
[TimeControl "180+1"]
[EndTime "8:41:51 PDT"]
[Termination "sokidze won on time"]

1. d4 {[%clk 0:03:00.9]} 1... Nf6 {[%clk 0:02:32.7]} 2. c4 {[%clk 0:02:59.4]}
2... e6 {[%clk 0:02:32.6]} 3. Nf3 {[%clk 0:02:59.3]} 3... b6 {[%clk 0:02:31.8]}
4. g3 {[%clk 0:02:58.5]} 4... Ba6 {[%clk 0:02:31.7]} 5. Qa4 {[%clk 0:02:55.8]}
5... Bb7 {[%clk 0:02:28.9]} 6. Bg2 {[%clk 0:02:55.7]} 6... Be7 {[%clk 0:02:28]}
7. O-O {[%clk 0:02:53.7]} 7... O-O {[%clk 0:02:24]} 8. Re1 {[%clk 0:02:38.4]}
8... a6 {[%clk 0:02:13.3]} 9. Qb3 {[%clk 0:01:52.1]} 9... d6 {[%clk 0:02:09]}
10. Nc3 {[%clk 0:01:47.6]} 10... Ne4 {[%clk 0:01:55.9]} 11. Bf4 {[%clk
0:00:58.8]} 11... Nd7 {[%clk 0:01:39.8]} 12. h4 {[%clk 0:00:58.1]} 12... Nxc3
{[%clk 0:01:33.5]} 13. Qxc3 {[%clk 0:00:57.8]} 13... Nf6 {[%clk 0:01:26]} 14.
Rad1 {[%clk 0:00:47.4]} 14... Ne4 {[%clk 0:01:23.7]} 15. Qc2 {[%clk 0:00:47]}
15... Qc8 {[%clk 0:01:21.1]} 16. d5 {[%clk 0:00:41.8]} 16... Nf6 {[%clk
0:01:15.6]} 17. e4 {[%clk 0:00:37.1]} 17... e5 {[%clk 0:01:15.7]} 18. Bc1 {[%clk
0:00:35.4]} 18... a5 {[%clk 0:01:12.4]} 19. b3 {[%clk 0:00:34.6]} 19... Qd7
{[%clk 0:01:06]} 20. Rf1 {[%clk 0:00:32.5]} 20... Bc8 {[%clk 0:01:05.2]} 21. Ne1
{[%clk 0:00:24.4]} 21... Nh5 {[%clk 0:00:56.4]} 22. Nd3 {[%clk 0:00:17.9]} 22...
g6 {[%clk 0:00:52.9]} 23. Bh6 {[%clk 0:00:15.1]} 23... Re8 {[%clk 0:00:53.2]}
24. Qe2 {[%clk 0:00:11.9]} 24... Bf8 {[%clk 0:00:51.9]} 25. Bc1 {[%clk
0:00:08.6]} 25... Bg7 {[%clk 0:00:44.1]} 26. Bf3 {[%clk 0:00:08.1]} 26... Nf6
{[%clk 0:00:44]} 27. h5 {[%clk 0:00:05.5]} 27... gxh5 {[%clk 0:00:38.8]} 28.
Bxh5 {[%clk 0:00:03.5]} 28... Qh3 {[%clk 0:00:37.2]} 29. Bf3 {[%clk 0:00:03]}
29... Bg4 {[%clk 0:00:36.6]} 30. Rfe1 {[%clk 0:00:03]} 30... h5 {[%clk 0:00:26]}
31. Bg5 {[%clk 0:00:02.8]} 31... Bxf3 {[%clk 0:00:23.7]} 32. Qxf3 {[%clk
0:00:03.7]} 32... Qg4 {[%clk 0:00:20.9]} 33. Kg2 {[%clk 0:00:02.4]} 33... Qxg5
{[%clk 0:00:19.8]} 34. Rh1 {[%clk 0:00:02.7]} 34... Ng4 {[%clk 0:00:18.4]} 35.
Qe2 {[%clk 0:00:02.2]} 35... Rf8 {[%clk 0:00:18]} 36. Rh4 {[%clk 0:00:01.2]}
36... f5 {[%clk 0:00:14.9]} 37. Rdh1 {[%clk 0:00:01.8]} 37... fxe4 {[%clk
0:00:12.2]} 38. Qxe4 {[%clk 0:00:02.7]} 38... Rxf2+ {[%clk 0:00:10.8]} 39. Nxf2
{[%clk 0:00:01.9]} 39... Qd2 {[%clk 0:00:07.2]} 40. Rxg4 {[%clk 0:00:01.7]}
40... hxg4 {[%clk 0:00:06.5]} 41. Qh7+ {[%clk 0:00:02.4]} 41... Kf8 {[%clk
0:00:07]} 42. Qf5+ {[%clk 0:00:02.8]} 42... Kg8 {[%clk 0:00:06.1]} 43. Qe6+
{[%clk 0:00:03.1]} 43... Kf8 {[%clk 0:00:06.3]} 44. Rh5 {[%clk 0:00:03.8]} 1-0

[Event "Early-Titled-Tuesday-Blitz-October-17-2023"]
[Site "Chess.com"]
[Date "2023.10.17"]
[Round "4"]
[White "Nekoo04"]
[Black "C_K_G"]
[Result "1-0"]
[WhiteElo "2265"]
[BlackElo "1888"]
[TimeControl "180+1"]
[EndTime "8:41:53 PDT"]
[Termination "Nekoo04 won by resignation"]

1. d4 {[%clk 0:03:00.9]} 1... d5 {[%clk 0:02:59.8]} 2. Nf3 {[%clk 0:02:58.8]}
2... Nf6 {[%clk 0:02:59.1]} 3. c4 {[%clk 0:02:59.5]} 3... e6 {[%clk 0:02:58.8]}
4. g3 {[%clk 0:03:00.1]} 4... b6 {[%clk 0:02:57.9]} 5. Bg2 {[%clk 0:02:57.4]}
5... Bb7 {[%clk 0:02:57.9]} 6. cxd5 {[%clk 0:02:57.7]} 6... exd5 {[%clk
0:02:56.5]} 7. O-O {[%clk 0:02:57.2]} 7... Bd6 {[%clk 0:02:55.1]} 8. Nc3 {[%clk
0:02:48.2]} 8... a6 {[%clk 0:02:54.9]} 9. Ne5 {[%clk 0:02:36.1]} 9... O-O {[%clk
0:02:53.4]} 10. Bg5 {[%clk 0:02:32.9]} 10... h6 {[%clk 0:02:50.9]} 11. Bxf6
{[%clk 0:02:32.2]} 11... gxf6 {[%clk 0:02:45.4]} 12. Ng4 {[%clk 0:02:29.6]}
12... h5 {[%clk 0:02:38.1]} 13. Ne3 {[%clk 0:02:29.5]} 13... c6 {[%clk
0:02:37.7]} 14. Nf5 {[%clk 0:02:28.1]} 14... Bc8 {[%clk 0:02:29.5]} 15. Nxd6
{[%clk 0:02:13.9]} 15... Qxd6 {[%clk 0:02:28.9]} 16. e4 {[%clk 0:02:14.8]} 16...
Bg4 {[%clk 0:02:24.7]} 17. f3 {[%clk 0:02:11.2]} 17... Be6 {[%clk 0:02:24.5]}
18. Qd2 {[%clk 0:01:56.4]} 18... Kg7 {[%clk 0:02:22.9]} 19. e5 {[%clk
0:01:51.4]} 19... Qe7 {[%clk 0:02:17.3]} 20. f4 {[%clk 0:01:50.7]} 20... f5
{[%clk 0:02:13.2]} 21. Qe2 {[%clk 0:01:44.6]} 21... Rh8 {[%clk 0:02:12.3]} 22.
Bf3 {[%clk 0:01:44.5]} 22... h4 {[%clk 0:02:10.2]} 23. g4 {[%clk 0:01:42.9]}
23... fxg4 {[%clk 0:02:09.6]} 24. Bxg4 {[%clk 0:01:41.1]} 24... Bxg4 {[%clk
0:02:03.2]} 25. Qxg4+ {[%clk 0:01:42]} 25... Kf8 {[%clk 0:02:03.6]} 26. Kh1
{[%clk 0:01:41.6]} 26... Nd7 {[%clk 0:02:02.5]} 27. f5 {[%clk 0:01:37.6]} 27...
Rg8 {[%clk 0:01:59.7]} 28. Qf3 {[%clk 0:01:31.3]} 28... Qb4 {[%clk 0:01:43.4]}
29. Nxd5 {[%clk 0:01:00.2]} 29... cxd5 {[%clk 0:01:38.5]} 30. Qxd5 {[%clk
0:00:59.8]} 30... Rd8 {[%clk 0:01:31.6]} 31. e6 {[%clk 0:00:58.6]} 31... Qe7
{[%clk 0:00:28.7]} 32. Rae1 {[%clk 0:00:51.7]} 32... Nf6 {[%clk 0:00:26.4]} 33.
Qe5 {[%clk 0:00:42]} 33... Ng4 {[%clk 0:00:22.8]} 34. f6 {[%clk 0:00:37]} 34...
Nxe5 {[%clk 0:00:18.1]} 35. fxe7+ {[%clk 0:00:36.9]} 35... Kxe7 {[%clk
0:00:18.5]} 36. exf7 {[%clk 0:00:34.6]} 36... Rgf8 {[%clk 0:00:15.1]} 37. Rxe5+
{[%clk 0:00:33.4]} 37... Kd6 {[%clk 0:00:14.6]} 38. Rf6+ {[%clk 0:00:33.4]}
38... Kc7 {[%clk 0:00:14.9]} 39. Re7+ {[%clk 0:00:32.1]} 39... Kc8 {[%clk
0:00:13.9]} 40. Rc6+ {[%clk 0:00:31.1]} 40... Kb8 {[%clk 0:00:13.9]} 41. Rxb6+
{[%clk 0:00:31.6]} 41... Kc8 {[%clk 0:00:14]} 42. Rxa6 {[%clk 0:00:30.8]} 42...
Kb8 {[%clk 0:00:14.5]} 43. d5 {[%clk 0:00:24.2]} 43... Rxd5 {[%clk 0:00:11.7]}
44. Re8+ {[%clk 0:00:23.9]} 44... Rd8 {[%clk 0:00:12]} 45. Rae6 {[%clk
0:00:19.8]} 45... Kc7 {[%clk 0:00:10.8]} 46. Rxd8 {[%clk 0:00:19.3]} 46... Kxd8
{[%clk 0:00:10.9]} 47. Re8+ {[%clk 0:00:19.7]} 47... Rxe8 {[%clk 0:00:11.5]} 48.
fxe8=Q+ {[%clk 0:00:20.6]} 48... Kxe8 {[%clk 0:00:12.2]} 49. Kg2 {[%clk
0:00:20.9]} 49... Kd7 {[%clk 0:00:12.6]} 50. Kh3 {[%clk 0:00:21.8]} 1-0

[Event "Early-Titled-Tuesday-Blitz-October-17-2023"]
[Site "Chess.com"]
[Date "2023.10.17"]
[Round "4"]
[White "Magila31"]
[Black "SashaKuzhilniy"]
[Result "0-1"]
[WhiteElo "2378"]
[BlackElo "2624"]
[TimeControl "180+1"]
[EndTime "8:41:57 PDT"]
[Termination "SashaKuzhilniy won by resignation"]

1. d4 {[%clk 0:02:59.5]} 1... g6 {[%clk 0:03:00.4]} 2. c4 {[%clk 0:02:58.2]}
2... Bg7 {[%clk 0:03:00.9]} 3. Nf3 {[%clk 0:02:58.5]} 3... d6 {[%clk 0:03:01.3]}
4. Nc3 {[%clk 0:02:57.8]} 4... Nf6 {[%clk 0:03:00.6]} 5. e4 {[%clk 0:02:56.6]}
5... O-O {[%clk 0:03:00.9]} 6. Be2 {[%clk 0:02:56.2]} 6... Nbd7 {[%clk
0:03:01.1]} 7. O-O {[%clk 0:02:55.5]} 7... e5 {[%clk 0:03:01.4]} 8. Be3 {[%clk
0:02:50.4]} 8... Qe7 {[%clk 0:02:59.2]} 9. d5 {[%clk 0:02:47]} 9... c5 {[%clk
0:02:58.9]} 10. Nd2 {[%clk 0:02:42.6]} 10... Kh8 {[%clk 0:02:57.2]} 11. a3
{[%clk 0:02:39.7]} 11... Ng8 {[%clk 0:02:57.2]} 12. b4 {[%clk 0:02:37.1]} 12...
b6 {[%clk 0:02:57.7]} 13. Nb3 {[%clk 0:02:29.5]} 13... Bh6 {[%clk 0:02:53.9]}
14. Qd2 {[%clk 0:02:25.4]} 14... Bxe3 {[%clk 0:02:52.9]} 15. Qxe3 {[%clk
0:02:25.7]} 15... f5 {[%clk 0:02:52.7]} 16. exf5 {[%clk 0:02:21]} 16... gxf5
{[%clk 0:02:53.6]} 17. f4 {[%clk 0:02:21.1]} 17... e4 {[%clk 0:02:50.3]} 18. g4
{[%clk 0:02:03.2]} 18... fxg4 {[%clk 0:02:43.7]} 19. Bxg4 {[%clk 0:01:55]} 19...
Ndf6 {[%clk 0:02:08.9]} 20. Bxc8 {[%clk 0:01:54.2]} 20... Raxc8 {[%clk
0:02:09.8]} 21. Nd2 {[%clk 0:01:54.3]} 21... Rce8 {[%clk 0:01:58.2]} 22. bxc5
{[%clk 0:01:43]} 22... bxc5 {[%clk 0:01:57.7]} 23. Rae1 {[%clk 0:01:34.6]} 23...
Nh6 {[%clk 0:01:25.9]} 24. Ncxe4 {[%clk 0:01:28.9]} 24... Nf5 {[%clk 0:01:16.9]}
25. Qc3 {[%clk 0:01:26.8]} 25... Nd4 {[%clk 0:01:17.1]} 26. Ng5 {[%clk
0:01:19.3]} 26... Ne2+ {[%clk 0:01:07.3]} 27. Rxe2 {[%clk 0:01:18.4]} 27... Qxe2
{[%clk 0:01:08.2]} 28. Ndf3 {[%clk 0:00:53.8]} 28... Qe3+ {[%clk 0:00:54.5]} 29.
Qxe3 {[%clk 0:00:48.6]} 29... Rxe3 {[%clk 0:00:55.4]} 30. Kf2 {[%clk 0:00:39.2]}
30... Rxa3 {[%clk 0:00:50.3]} 31. Ne6 {[%clk 0:00:38.2]} 31... Ne4+ {[%clk
0:00:44.2]} 32. Ke2 {[%clk 0:00:35.7]} 32... Rg8 {[%clk 0:00:42]} 33. Nfg5
{[%clk 0:00:33.6]} 33... Ra2+ {[%clk 0:00:21.4]} 34. Ke3 {[%clk 0:00:26.3]}
34... Nxg5 {[%clk 0:00:21.4]} 35. fxg5 {[%clk 0:00:25.8]} 35... Rxh2 {[%clk
0:00:21.6]} 36. Ra1 {[%clk 0:00:23.2]} 36... h6 {[%clk 0:00:16.9]} 37. Rxa7
{[%clk 0:00:21.3]} 37... hxg5 {[%clk 0:00:15.8]} 38. Rd7 {[%clk 0:00:18.2]}
38... g4 {[%clk 0:00:15.2]} 39. Nf4 {[%clk 0:00:13.9]} 39... g3 {[%clk 0:00:14]}
40. Rxd6 {[%clk 0:00:14.2]} 40... g2 {[%clk 0:00:13]} 41. Nxg2 {[%clk
0:00:13.7]} 41... Rhxg2 {[%clk 0:00:11.7]} 42. Rc6 {[%clk 0:00:13.9]} 42...
R2g3+ {[%clk 0:00:09]} 43. Ke4 {[%clk 0:00:13]} 43... R8g4+ {[%clk 0:00:07.2]}
44. Ke5 {[%clk 0:00:13.1]} 44... Rxc4 {[%clk 0:00:07.8]} 45. d6 {[%clk
0:00:13.5]} 45... Re3+ {[%clk 0:00:07.2]} 46. Kd5 {[%clk 0:00:12.5]} 46... Rc1
{[%clk 0:00:06]} 47. Rc8+ {[%clk 0:00:07]} 47... Kg7 {[%clk 0:00:06.4]} 48. Kc6
{[%clk 0:00:07.4]} 48... Rd3 {[%clk 0:00:05.9]} 49. d7 {[%clk 0:00:07.6]} 49...
Rcd1 {[%clk 0:00:06.5]} 50. Rc7 {[%clk 0:00:06.7]} 50... Rxd7 {[%clk 0:00:06.7]}
51. Rxd7+ {[%clk 0:00:06.6]} 51... Rxd7 {[%clk 0:00:07.6]} 0-1

[Event "Early-Titled-Tuesday-Blitz-October-17-2023"]
[Site "Chess.com"]
[Date "2023.10.17"]
[Round "4"]
[White "Payyappat"]
[Black "Ariadna_Atreides"]
[Result "1/2-1/2"]
[WhiteElo "2472"]
[BlackElo "2204"]
[TimeControl "180+1"]
[EndTime "8:41:57 PDT"]
[Termination "Game drawn by stalemate"]

1. e4 {[%clk 0:03:00.9]} 1... c6 {[%clk 0:03:00.3]} 2. d4 {[%clk 0:02:59.2]}
2... d5 {[%clk 0:03:00.9]} 3. Nc3 {[%clk 0:03:00.1]} 3... dxe4 {[%clk
0:03:00.8]} 4. Nxe4 {[%clk 0:03:00.3]} 4... Nf6 {[%clk 0:03:01.7]} 5. Nxf6+
{[%clk 0:03:00.2]} 5... exf6 {[%clk 0:03:02.6]} 6. Bc4 {[%clk 0:02:59.3]} 6...
Bd6 {[%clk 0:03:01.4]} 7. Qe2+ {[%clk 0:02:58.8]} 7... Qe7 {[%clk 0:03:01]} 8.
Qxe7+ {[%clk 0:02:59]} 8... Kxe7 {[%clk 0:03:01]} 9. Ne2 {[%clk 0:02:56.8]} 9...
Re8 {[%clk 0:03:00.2]} 10. Be3 {[%clk 0:02:55.5]} 10... Be6 {[%clk 0:02:59.1]}
11. Bd3 {[%clk 0:02:54.2]} 11... g6 {[%clk 0:02:51.4]} 12. O-O-O {[%clk
0:02:52.7]} 12... a5 {[%clk 0:02:49.4]} 13. c4 {[%clk 0:02:50.3]} 13... Na6
{[%clk 0:02:45.5]} 14. Rhe1 {[%clk 0:02:47.7]} 14... Nb4 {[%clk 0:02:44.9]} 15.
d5 {[%clk 0:02:07.6]} 15... cxd5 {[%clk 0:02:38.3]} 16. c5 {[%clk 0:02:07]}
16... Rec8 {[%clk 0:02:21.2]} 17. Nc3 {[%clk 0:01:47.6]} 17... Bxc5 {[%clk
0:02:17]} 18. Bxc5+ {[%clk 0:01:46.6]} 18... Rxc5 {[%clk 0:02:16.4]} 19. Kb1
{[%clk 0:01:44]} 19... Kf8 {[%clk 0:01:56.4]} 20. Ka1 {[%clk 0:01:19.5]} 20...
Nxd3 {[%clk 0:01:34.8]} 21. Rxd3 {[%clk 0:01:18.7]} 21... b5 {[%clk 0:01:35.3]}
22. Red1 {[%clk 0:01:14.6]} 22... Rd8 {[%clk 0:01:24.3]} 23. Ne4 {[%clk
0:01:05.5]} 23... Rc2 {[%clk 0:01:19.9]} 24. R3d2 {[%clk 0:00:08.4]} 24... Rxd2
{[%clk 0:00:30.5]} 25. Rxd2 {[%clk 0:00:06.7]} 25... Rc8 {[%clk 0:00:29.1]} 26.
Nc3 {[%clk 0:00:04.5]} 26... b4 {[%clk 0:00:27.5]} 27. Ne2 {[%clk 0:00:01.9]}
27... d4 {[%clk 0:00:19.8]} 28. Kb1 {[%clk 0:00:01.2]} 28... Bf5+ {[%clk
0:00:18.3]} 29. Ka1 {[%clk 0:00:01.6]} 29... d3 {[%clk 0:00:17.3]} 30. a3 {[%clk
0:00:02]} 30... dxe2 {[%clk 0:00:15.6]} 31. Rxe2 {[%clk 0:00:02.9]} 31... b3
{[%clk 0:00:12.7]} 32. Re1 {[%clk 0:00:03.2]} 32... Rc2 {[%clk 0:00:11.9]} 33.
Rf1 {[%clk 0:00:03.7]} 33... a4 {[%clk 0:00:11.7]} 34. g3 {[%clk 0:00:02.6]}
34... Bd3 {[%clk 0:00:10.9]} 35. Rd1 {[%clk 0:00:02.8]} 35... Rxf2 {[%clk
0:00:09.9]} 36. h4 {[%clk 0:00:02.9]} 36... Bc2 {[%clk 0:00:09.7]} 37. Re1
{[%clk 0:00:03]} 37... f5 {[%clk 0:00:09.4]} 38. g4 {[%clk 0:00:03]} 38... fxg4
{[%clk 0:00:09]} 39. h5 {[%clk 0:00:03.4]} 39... gxh5 {[%clk 0:00:08.8]} 40.
Re8+ {[%clk 0:00:03.5]} 40... Kg7 {[%clk 0:00:07.6]} 41. Rg8+ {[%clk 0:00:04]}
41... Kf6 {[%clk 0:00:05.9]} 42. Rg6+ {[%clk 0:00:04.4]} 42... Ke5 {[%clk
0:00:04]} 43. Re6+ {[%clk 0:00:04.6]} 43... Kf4 {[%clk 0:00:04.3]} 44. Re4+
{[%clk 0:00:04.8]} 44... Kg3 {[%clk 0:00:02.3]} 45. Rxg4+ {[%clk 0:00:05.2]}
45... Kh3 {[%clk 0:00:01.5]} 46. Rh4+ {[%clk 0:00:05.4]} 46... Kg2 {[%clk
0:00:01.8]} 47. Rh2+ {[%clk 0:00:05.8]} 47... Kg1 {[%clk 0:00:01.7]} 48. Rh1+
{[%clk 0:00:05.5]} 48... Kg2 {[%clk 0:00:02]} 49. Rg1+ {[%clk 0:00:06.1]} 49...
Kxg1 {[%clk 0:00:01.2]} 1/2-1/2

[Event "Early-Titled-Tuesday-Blitz-October-17-2023"]
[Site "Chess.com"]
[Date "2023.10.17"]
[Round "4"]
[White "ozates"]
[Black "Zhigalko_Sergei"]
[Result "0-1"]
[WhiteElo "2754"]
[BlackElo "2940"]
[TimeControl "180+1"]
[EndTime "8:41:58 PDT"]
[Termination "Zhigalko_Sergei won on time"]

1. e4 {[%clk 0:02:59]} 1... c5 {[%clk 0:03:00.3]} 2. Nf3 {[%clk 0:02:58.4]} 2...
Nc6 {[%clk 0:03:00.7]} 3. Bb5 {[%clk 0:02:58.4]} 3... Nf6 {[%clk 0:03:00.8]} 4.
Nc3 {[%clk 0:02:55.4]} 4... Qc7 {[%clk 0:03:01.1]} 5. d3 {[%clk 0:02:45]} 5...
d6 {[%clk 0:02:56.3]} 6. O-O {[%clk 0:02:38.7]} 6... e6 {[%clk 0:02:53.1]} 7.
Re1 {[%clk 0:02:35.4]} 7... Bd7 {[%clk 0:02:53.1]} 8. h3 {[%clk 0:02:25.6]} 8...
Be7 {[%clk 0:02:34.4]} 9. Bf4 {[%clk 0:02:23.8]} 9... O-O {[%clk 0:02:26.5]} 10.
e5 {[%clk 0:02:23.1]} 10... dxe5 {[%clk 0:02:18.9]} 11. Nxe5 {[%clk 0:02:21.8]}
11... Nxe5 {[%clk 0:02:14.7]} 12. Bxe5 {[%clk 0:02:21.5]} 12... Qc8 {[%clk
0:02:15.1]} 13. Qf3 {[%clk 0:01:53.8]} 13... Bxb5 {[%clk 0:02:14.2]} 14. Nxb5
{[%clk 0:01:53.9]} 14... Qd7 {[%clk 0:02:14.5]} 15. Nc3 {[%clk 0:01:53.5]} 15...
Rfd8 {[%clk 0:02:06.8]} 16. Qg3 {[%clk 0:01:50.4]} 16... Nh5 {[%clk 0:01:59.4]}
17. Qg4 {[%clk 0:01:50.5]} 17... Nf6 {[%clk 0:01:59.5]} 18. Qg3 {[%clk
0:01:50.6]} 18... Ne8 {[%clk 0:01:48.6]} 19. Ne4 {[%clk 0:01:48.9]} 19... Kh8
{[%clk 0:01:43.7]} 20. b3 {[%clk 0:01:47.2]} 20... f6 {[%clk 0:01:39.3]} 21. Bb2
{[%clk 0:01:44.2]} 21... b6 {[%clk 0:01:35.3]} 22. h4 {[%clk 0:01:41.5]} 22...
Qd5 {[%clk 0:01:31.7]} 23. Qf3 {[%clk 0:01:38.3]} 23... e5 {[%clk 0:01:25.4]}
24. h5 {[%clk 0:01:31]} 24... h6 {[%clk 0:00:54.4]} 25. Rad1 {[%clk 0:01:25.6]}
25... Nc7 {[%clk 0:00:51.7]} 26. Qg4 {[%clk 0:01:13.2]} 26... Ne6 {[%clk
0:00:41.9]} 27. Ng3 {[%clk 0:01:09.1]} 27... Bf8 {[%clk 0:00:36.5]} 28. Nf5
{[%clk 0:01:07.7]} 28... Qd7 {[%clk 0:00:33.7]} 29. Re4 {[%clk 0:00:41.5]} 29...
Qf7 {[%clk 0:00:32.2]} 30. g3 {[%clk 0:00:36.9]} 30... Rd5 {[%clk 0:00:15]} 31.
Rde1 {[%clk 0:00:36.8]} 31... Ng5 {[%clk 0:00:13.8]} 32. R4e3 {[%clk 0:00:33.3]}
32... Qd7 {[%clk 0:00:13.1]} 33. Kg2 {[%clk 0:00:12.8]} 33... Rd8 {[%clk
0:00:13]} 34. Bc3 {[%clk 0:00:10.6]} 34... Qb7 {[%clk 0:00:10.3]} 35. Kg1 {[%clk
0:00:09.9]} 35... Qd7 {[%clk 0:00:09.4]} 36. Bb2 {[%clk 0:00:10.1]} 36... b5
{[%clk 0:00:06.4]} 37. Bc1 {[%clk 0:00:07.6]} 37... c4 {[%clk 0:00:05.8]} 38.
bxc4 {[%clk 0:00:07.5]} 38... bxc4 {[%clk 0:00:06.7]} 39. dxc4 {[%clk
0:00:07.7]} 39... Rd1 {[%clk 0:00:07.2]} 40. Kh2 {[%clk 0:00:04.6]} 40... Bc5
{[%clk 0:00:06.8]} 41. Rxd1 {[%clk 0:00:03.3]} 41... Qxd1 {[%clk 0:00:06.5]} 42.
Qxd1 {[%clk 0:00:01.8]} 42... Rxd1 {[%clk 0:00:07.4]} 43. Rd3 {[%clk 0:00:02.3]}
43... Rxc1 {[%clk 0:00:06.9]} 44. Nh4 {[%clk 0:00:02.5]} 44... Rxc2 {[%clk
0:00:05.3]} 45. Rd8+ {[%clk 0:00:02.6]} 45... Kh7 {[%clk 0:00:04.8]} 46. Ng6
{[%clk 0:00:03.5]} 46... Nf7 {[%clk 0:00:04.9]} 47. Rd7 {[%clk 0:00:01.4]} 47...
Rxf2+ {[%clk 0:00:05.5]} 48. Kh3 {[%clk 0:00:01.3]} 48... Kg8 {[%clk 0:00:06.4]}
0-1